[Event "Early-Titled-Tuesday-Blitz-November-28-2023"]
[Site "Chess.com"]
[Date "2023.11.28"]
[Round "3"]
[White "K_A_S_T_O_R"]
[Black "CristianS27"]
[Result "1-0"]
[WhiteElo "2854"]
[BlackElo "2579"]
[TimeControl "180+1"]
[EndTime "8:29:40 PST"]
[Termination "K_A_S_T_O_R won by resignation"]

1. e4 {[%clk 0:03:00.9]} 1... e5 {[%clk 0:02:57.3]} 2. Nf3 {[%clk 0:02:57.4]}
2... Nc6 {[%clk 0:02:57.7]} 3. Bb5 {[%clk 0:02:57.4]} 3... a6 {[%clk 0:02:58.3]}
4. Ba4 {[%clk 0:02:57.5]} 4... Nf6 {[%clk 0:02:58.9]} 5. O-O {[%clk 0:02:57.7]}
5... Nxe4 {[%clk 0:02:59.5]} 6. d4 {[%clk 0:02:57.2]} 6... exd4 {[%clk
0:03:00.4]} 7. Re1 {[%clk 0:02:54.9]} 7... d5 {[%clk 0:03:00.8]} 8. Nxd4 {[%clk
0:02:51.7]} 8... Bd6 {[%clk 0:03:01.4]} 9. Nxc6 {[%clk 0:02:33.4]} 9... Bxh2+
{[%clk 0:03:01.3]} 10. Kf1 {[%clk 0:02:30.8]} 10... Qh4 {[%clk 0:03:02.2]} 11.
Be3 {[%clk 0:02:16.8]} 11... O-O {[%clk 0:02:59.4]} 12. Nd4 {[%clk 0:02:01.5]}
12... Bg4 {[%clk 0:02:48.1]} 13. Nf3 {[%clk 0:02:00.9]} 13... Qh5 {[%clk
0:02:44.5]} 14. Nc3 {[%clk 0:01:53.5]} 14... Rad8 {[%clk 0:02:23.9]} 15. Bd4
{[%clk 0:01:11.4]} 15... Bf4 {[%clk 0:02:19.2]} 16. Nxe4 {[%clk 0:01:02.2]}
16... Qh1+ {[%clk 0:02:07.2]} 17. Ke2 {[%clk 0:00:57.5]} 17... Qxg2 {[%clk
0:02:06.6]} 18. Nd2 {[%clk 0:00:42.5]} 18... b5 {[%clk 0:01:39]} 19. Rg1 {[%clk
0:00:40.5]} 19... Rfe8+ {[%clk 0:01:37.7]} 20. Kd3 {[%clk 0:00:40]} 20... Qh3
{[%clk 0:01:27.1]} 21. Rh1 {[%clk 0:00:35.9]} 21... Qg2 {[%clk 0:00:47.1]} 22.
Qg1 {[%clk 0:00:33]} 22... Bxf3 {[%clk 0:00:34.4]} 23. Qxg2 {[%clk 0:00:32.4]}
23... Bxg2 {[%clk 0:00:35.3]} 24. Rhg1 {[%clk 0:00:32.1]} 24... Be4+ {[%clk
0:00:35.5]} 25. Nxe4 {[%clk 0:00:25.2]} 25... dxe4+ {[%clk 0:00:36.4]} 26. Kc3
{[%clk 0:00:25.6]} 26... bxa4 {[%clk 0:00:30.4]} 27. Rxg7+ {[%clk 0:00:24.8]}
27... Kf8 {[%clk 0:00:30.6]} 28. Rxh7 {[%clk 0:00:24.7]} 28... Be5 {[%clk
0:00:22.2]} 29. Bxe5 {[%clk 0:00:24.7]} 29... Rxe5 {[%clk 0:00:23.1]} 30. Rh8+
{[%clk 0:00:25.2]} 30... Ke7 {[%clk 0:00:23.4]} 31. Rxd8 {[%clk 0:00:25.4]}
31... Kxd8 {[%clk 0:00:23.8]} 32. Rd1+ {[%clk 0:00:26]} 32... Ke7 {[%clk
0:00:23.7]} 33. Rd4 {[%clk 0:00:26.7]} 33... e3 {[%clk 0:00:20.7]} 34. fxe3
{[%clk 0:00:25.9]} 34... Rxe3+ {[%clk 0:00:21.6]} 35. Kd2 {[%clk 0:00:26.6]}
35... Re6 {[%clk 0:00:16.1]} 36. Rxa4 {[%clk 0:00:26.9]} 36... f5 {[%clk
0:00:16.6]} 37. Kd3 {[%clk 0:00:25.4]} 37... Kf6 {[%clk 0:00:12.5]} 38. Rc4
{[%clk 0:00:26]} 38... Kg5 {[%clk 0:00:04.3]} 39. Rxc7 {[%clk 0:00:25.5]} 39...
f4 {[%clk 0:00:04.9]} 40. Rf7 {[%clk 0:00:24.8]} 40... Kg4 {[%clk 0:00:04.4]}
41. c4 {[%clk 0:00:25.2]} 41... f3 {[%clk 0:00:05]} 42. c5 {[%clk 0:00:25.6]}
42... Kg3 {[%clk 0:00:05.3]} 43. b4 {[%clk 0:00:25.7]} 43... f2 {[%clk
0:00:05.7]} 44. a4 {[%clk 0:00:24.3]} 44... Kg2 {[%clk 0:00:05.5]} 45. b5 {[%clk
0:00:23.5]} 45... axb5 {[%clk 0:00:06.4]} 46. axb5 {[%clk 0:00:23.8]} 46... Rh6
{[%clk 0:00:04.4]} 47. c6 {[%clk 0:00:19.3]} 47... Rh3+ {[%clk 0:00:04.1]} 48.
Ke2 {[%clk 0:00:19.2]} 48... Rb3 {[%clk 0:00:02.3]} 49. Rxf2+ {[%clk 0:00:19.3]}
49... Kg3 {[%clk 0:00:02.4]} 50. Rf5 {[%clk 0:00:19.9]} 50... Kg4 {[%clk
0:00:01.8]} 51. Rc5 {[%clk 0:00:19.7]} 51... Kf4 {[%clk 0:00:02.3]} 52. c7
{[%clk 0:00:19.7]} 1-0

[Event "Early-Titled-Tuesday-Blitz-November-28-2023"]
[Site "Chess.com"]
[Date "2023.11.28"]
[Round "3"]
[White "GlavkonVVS"]
[Black "Valy02chess"]
[Result "1-0"]
[WhiteElo "2544"]
[BlackElo "2259"]
[TimeControl "180+1"]
[EndTime "8:29:40 PST"]
[Termination "GlavkonVVS won by resignation"]

1. c4 {[%clk 0:02:16.1]} 1... Nf6 {[%clk 0:02:52]} 2. Nc3 {[%clk 0:02:16.6]}
2... g6 {[%clk 0:02:42]} 3. d4 {[%clk 0:01:53.3]} 3... Bg7 {[%clk 0:02:41.2]} 4.
Nf3 {[%clk 0:01:45.6]} 4... O-O {[%clk 0:02:40.5]} 5. Bg5 {[%clk 0:01:40.3]}
5... c5 {[%clk 0:02:35.4]} 6. e3 {[%clk 0:01:38.4]} 6... d6 {[%clk 0:02:28.1]}
7. Be2 {[%clk 0:01:37.5]} 7... Bf5 {[%clk 0:02:10]} 8. O-O {[%clk 0:01:35.5]}
8... Nc6 {[%clk 0:02:09.8]} 9. Bd3 {[%clk 0:01:35]} 9... Bxd3 {[%clk 0:02:07.3]}
10. Qxd3 {[%clk 0:01:33.4]} 10... d5 {[%clk 0:01:53.7]} 11. dxc5 {[%clk
0:01:27.3]} 11... dxc4 {[%clk 0:01:53.4]} 12. Qxc4 {[%clk 0:01:26.4]} 12... Qa5
{[%clk 0:01:45.6]} 13. a3 {[%clk 0:01:21.1]} 13... Nd7 {[%clk 0:01:31.4]} 14. b4
{[%clk 0:01:19.6]} 14... Nce5 {[%clk 0:01:05.7]} 15. Nxe5 {[%clk 0:01:14.4]}
15... Nxe5 {[%clk 0:01:05.8]} 16. Qe4 {[%clk 0:01:09.5]} 16... Qa6 {[%clk
0:00:57.5]} 17. Nd5 {[%clk 0:00:51.6]} 17... Nc6 {[%clk 0:00:46]} 18. Nc7 {[%clk
0:00:44.4]} 18... Qa4 {[%clk 0:00:34]} 19. Nxa8 {[%clk 0:00:32.5]} 19... Bxa1
{[%clk 0:00:33.8]} 20. Rxa1 {[%clk 0:00:31.1]} 20... Rxa8 {[%clk 0:00:33.2]} 21.
h4 {[%clk 0:00:26.9]} 21... Rd8 {[%clk 0:00:32.3]} 22. h5 {[%clk 0:00:20]} 22...
Qb3 {[%clk 0:00:28.7]} 23. h6 {[%clk 0:00:18.2]} 23... Qb2 {[%clk 0:00:26.3]}
24. Re1 {[%clk 0:00:17.4]} 24... Qxa3 {[%clk 0:00:23.3]} 25. b5 {[%clk
0:00:17.6]} 25... Qxc5 {[%clk 0:00:20.1]} 26. bxc6 {[%clk 0:00:16.7]} 26... Qxg5
{[%clk 0:00:20.7]} 27. cxb7 {[%clk 0:00:16.7]} 27... Qc5 {[%clk 0:00:16.8]} 28.
Rb1 {[%clk 0:00:15.5]} 28... Qc7 {[%clk 0:00:16.9]} 29. g3 {[%clk 0:00:15.3]}
29... Rb8 {[%clk 0:00:16]} 30. Qd5 {[%clk 0:00:15.6]} 30... e6 {[%clk
0:00:14.7]} 31. Qe4 {[%clk 0:00:14.9]} 31... Kf8 {[%clk 0:00:11.5]} 32. Qd4
{[%clk 0:00:14.6]} 32... Ke7 {[%clk 0:00:11]} 33. Qh4+ {[%clk 0:00:14]} 33... f6
{[%clk 0:00:10.3]} 34. Qb4+ {[%clk 0:00:13.8]} 34... Kf7 {[%clk 0:00:10.2]} 35.
Qb5 {[%clk 0:00:13.2]} 35... Ke7 {[%clk 0:00:08.2]} 36. Rb3 {[%clk 0:00:13.1]}
36... Kf7 {[%clk 0:00:07.3]} 37. Rb4 {[%clk 0:00:13.4]} 37... Ke7 {[%clk
0:00:07.2]} 38. Kg2 {[%clk 0:00:13.8]} 38... Kf7 {[%clk 0:00:07.3]} 39. g4
{[%clk 0:00:14.2]} 39... g5 {[%clk 0:00:06]} 40. f4 {[%clk 0:00:13.1]} 40... Kg6
{[%clk 0:00:05.3]} 41. f5+ {[%clk 0:00:12.9]} 41... exf5 {[%clk 0:00:05]} 42.
Qxf5+ {[%clk 0:00:12.5]} 42... Kxh6 {[%clk 0:00:04.6]} 43. Kf3 {[%clk
0:00:12.6]} 43... Kg7 {[%clk 0:00:04.6]} 44. Rb1 {[%clk 0:00:11.1]} 44... Rxb7
{[%clk 0:00:04.9]} 45. Rd1 {[%clk 0:00:10.8]} 45... Qc6+ {[%clk 0:00:04.6]} 46.
Kg3 {[%clk 0:00:09.9]} 46... Qc7+ {[%clk 0:00:04.4]} 47. Kf3 {[%clk 0:00:09.6]}
47... Qc6+ {[%clk 0:00:04.7]} 48. Qe4 {[%clk 0:00:09.6]} 48... Qxe4+ {[%clk
0:00:04.6]} 49. Kxe4 {[%clk 0:00:10.5]} 49... Rd7 {[%clk 0:00:04.1]} 50. Rxd7+
{[%clk 0:00:09.9]} 50... Kg6 {[%clk 0:00:04.7]} 51. Rxa7 {[%clk 0:00:10.7]}
51... h5 {[%clk 0:00:04.2]} 52. gxh5+ {[%clk 0:00:10.6]} 52... Kxh5 {[%clk
0:00:04.7]} 53. Kf5 {[%clk 0:00:11.2]} 1-0

[Event "Early-Titled-Tuesday-Blitz-November-28-2023"]
[Site "Chess.com"]
[Date "2023.11.28"]
[Round "3"]
[White "Kotofeyca"]
[Black "Witty_Alien"]
[Result "1-0"]
[WhiteElo "2456"]
[BlackElo "2249"]
[TimeControl "180+1"]
[EndTime "8:29:40 PST"]
[Termination "Kotofeyca won on time"]

1. d4 {[%clk 0:03:00.9]} 1... e5 {[%clk 0:03:00]} 2. dxe5 {[%clk 0:03:00.4]}
2... d6 {[%clk 0:03:00.2]} 3. Nf3 {[%clk 0:03:00.9]} 3... Nc6 {[%clk 0:03:00.5]}
4. Bg5 {[%clk 0:03:00.9]} 4... Qd7 {[%clk 0:02:41.5]} 5. exd6 {[%clk 0:02:54.5]}
5... Bxd6 {[%clk 0:02:40.7]} 6. Nc3 {[%clk 0:02:51.8]} 6... Nge7 {[%clk
0:02:18.2]} 7. e3 {[%clk 0:02:45]} 7... Ng6 {[%clk 0:02:11.5]} 8. Bd3 {[%clk
0:02:30]} 8... h6 {[%clk 0:02:09.3]} 9. Bh4 {[%clk 0:01:57.8]} 9... Nxh4 {[%clk
0:02:06.9]} 10. Nxh4 {[%clk 0:01:58.7]} 10... g6 {[%clk 0:01:29.8]} 11. Ne4
{[%clk 0:01:37.6]} 11... Be7 {[%clk 0:01:14.8]} 12. Nf3 {[%clk 0:01:33.4]} 12...
Nb4 {[%clk 0:01:05.3]} 13. O-O {[%clk 0:01:15.9]} 13... Nxd3 {[%clk 0:01:05.2]}
14. Qxd3 {[%clk 0:01:12.3]} 14... Qf5 {[%clk 0:00:56.6]} 15. Ng3 {[%clk
0:01:04.3]} 15... Qa5 {[%clk 0:00:52.7]} 16. Qe4 {[%clk 0:00:56.2]} 16... h5
{[%clk 0:00:36.9]} 17. Rfd1 {[%clk 0:00:49.7]} 17... h4 {[%clk 0:00:35.1]} 18.
Rd5 {[%clk 0:00:42.7]} 18... Qb6 {[%clk 0:00:29.6]} 19. Re5 {[%clk 0:00:38]}
19... Be6 {[%clk 0:00:27.3]} 20. Ne2 {[%clk 0:00:28]} 20... Bf6 {[%clk
0:00:17.9]} 21. Qa4+ {[%clk 0:00:19.9]} 21... Kf8 {[%clk 0:00:17]} 22. Rb5
{[%clk 0:00:17.6]} 22... Qd6 {[%clk 0:00:14]} 23. Nfd4 {[%clk 0:00:14.2]} 23...
Rd8 {[%clk 0:00:12.7]} 24. Qb4 {[%clk 0:00:13.4]} 24... Qxb4 {[%clk 0:00:06.9]}
25. Rxb4 {[%clk 0:00:14.3]} 25... Bd5 {[%clk 0:00:05.4]} 26. c4 {[%clk
0:00:12.5]} 26... c5 {[%clk 0:00:05.4]} 27. cxd5 {[%clk 0:00:09.8]} 27... cxb4
{[%clk 0:00:05.4]} 28. e4 {[%clk 0:00:09.9]} 28... h3 {[%clk 0:00:05.4]} 29. g3
{[%clk 0:00:09.8]} 29... Rc8 {[%clk 0:00:04.6]} 30. f4 {[%clk 0:00:09.5]} 30...
Bxd4+ {[%clk 0:00:03.1]} 31. Nxd4 {[%clk 0:00:10.4]} 31... Rc4 {[%clk
0:00:03.8]} 32. Rd1 {[%clk 0:00:10.7]} 32... Kg7 {[%clk 0:00:03.8]} 33. Kf2
{[%clk 0:00:10.6]} 33... Re8 {[%clk 0:00:04.4]} 34. Ke3 {[%clk 0:00:11.2]} 34...
f5 {[%clk 0:00:01.9]} 35. e5 {[%clk 0:00:10.8]} 35... g5 {[%clk 0:00:02.6]} 36.
Nxf5+ {[%clk 0:00:08.4]} 36... Kg6 {[%clk 0:00:02.6]} 37. Nd4 {[%clk 0:00:08.5]}
37... gxf4+ {[%clk 0:00:02.8]} 38. gxf4 {[%clk 0:00:09.4]} 38... Kh5 {[%clk
0:00:02.3]} 39. Ke4 {[%clk 0:00:08.4]} 39... b3 {[%clk 0:00:02.1]} 40. axb3
{[%clk 0:00:08.1]} 40... Rb4 {[%clk 0:00:02.7]} 41. d6 {[%clk 0:00:08.5]} 41...
a5 {[%clk 0:00:02.2]} 42. f5 {[%clk 0:00:08.2]} 42... a4 {[%clk 0:00:02.2]} 43.
bxa4 {[%clk 0:00:08.2]} 43... Rxa4 {[%clk 0:00:02.3]} 44. e6 {[%clk 0:00:08.7]}
44... b5 {[%clk 0:00:02.3]} 45. d7 {[%clk 0:00:09.2]} 45... Rd8 {[%clk
0:00:01.6]} 46. e7 {[%clk 0:00:09.4]} 46... Rxd7 {[%clk 0:00:01.7]} 47. e8=Q+
{[%clk 0:00:09.8]} 47... Kh4 {[%clk 0:00:01.4]} 48. Qxd7 {[%clk 0:00:10.3]}
48... Rxd4+ {[%clk 0:00:01.4]} 49. Rxd4 {[%clk 0:00:09.4]} 49... b4 {[%clk
0:00:02.3]} 50. Qh7+ {[%clk 0:00:08.8]} 1-0

[Event "Early-Titled-Tuesday-Blitz-November-28-2023"]
[Site "Chess.com"]
[Date "2023.11.28"]
[Round "3"]
[White "Rud_Makarian"]
[Black "Andrei_Skvortsov"]
[Result "1-0"]
[WhiteElo "2982"]
[BlackElo "2732"]
[TimeControl "180+1"]
[EndTime "8:29:42 PST"]
[Termination "Rud_Makarian won on time"]

1. d4 {[%clk 0:03:00.2]} 1... g6 {[%clk 0:02:52.6]} 2. c4 {[%clk 0:02:58.2]}
2... Bg7 {[%clk 0:02:53]} 3. Nf3 {[%clk 0:02:58.4]} 3... e6 {[%clk 0:02:53.1]}
4. g3 {[%clk 0:02:55.8]} 4... Ne7 {[%clk 0:02:53.1]} 5. Bg2 {[%clk 0:02:55.8]}
5... O-O {[%clk 0:02:53.8]} 6. O-O {[%clk 0:02:54.8]} 6... d5 {[%clk 0:02:54.4]}
7. e3 {[%clk 0:02:52]} 7... a6 {[%clk 0:02:46.4]} 8. Nbd2 {[%clk 0:02:46.8]}
8... b5 {[%clk 0:02:42.2]} 9. cxd5 {[%clk 0:02:43.2]} 9... exd5 {[%clk
0:02:41.6]} 10. Nb3 {[%clk 0:02:43.1]} 10... Nd7 {[%clk 0:02:39.1]} 11. Bd2
{[%clk 0:02:42.7]} 11... Nb6 {[%clk 0:02:37.9]} 12. Nc5 {[%clk 0:02:36.6]} 12...
Nf5 {[%clk 0:02:35.1]} 13. b3 {[%clk 0:02:35.4]} 13... Nd7 {[%clk 0:02:31.5]}
14. Rc1 {[%clk 0:02:33.8]} 14... Nxc5 {[%clk 0:02:30.3]} 15. Rxc5 {[%clk
0:02:32.6]} 15... Ra7 {[%clk 0:02:03]} 16. Ba5 {[%clk 0:02:31]} 16... Re8 {[%clk
0:01:56.9]} 17. Qc2 {[%clk 0:02:29.7]} 17... Re7 {[%clk 0:01:56.8]} 18. Rc1
{[%clk 0:02:29.5]} 18... Be6 {[%clk 0:01:46.5]} 19. Bxc7 {[%clk 0:02:20.8]}
19... Qe8 {[%clk 0:01:38.3]} 20. Ne5 {[%clk 0:02:16.8]} 20... h5 {[%clk
0:01:31.2]} 21. Ba5 {[%clk 0:02:09.1]} 21... Bxe5 {[%clk 0:01:25.1]} 22. dxe5
{[%clk 0:02:06.8]} 22... Kh7 {[%clk 0:01:21.4]} 23. h4 {[%clk 0:01:58.8]} 23...
d4 {[%clk 0:01:08.4]} 24. e4 {[%clk 0:01:53.9]} 24... Ng7 {[%clk 0:01:08.4]} 25.
Qd3 {[%clk 0:01:49.9]} 25... Red7 {[%clk 0:01:05.9]} 26. Rc6 {[%clk 0:01:38.3]}
26... Ra8 {[%clk 0:00:51.3]} 27. Bb6 {[%clk 0:01:35]} 27... Qb8 {[%clk
0:00:48.2]} 28. Bc7 {[%clk 0:01:29.6]} 28... Qa7 {[%clk 0:00:43.2]} 29. Bd6
{[%clk 0:01:28.8]} 29... Ne8 {[%clk 0:00:39.6]} 30. f4 {[%clk 0:01:18.2]} 30...
Bg4 {[%clk 0:00:20.7]} 31. Kh2 {[%clk 0:01:15]} 31... Rad8 {[%clk 0:00:20.2]}
32. Bc5 {[%clk 0:01:12.9]} 32... Qb7 {[%clk 0:00:20.1]} 33. Bb4 {[%clk
0:01:13.3]} 33... Ng7 {[%clk 0:00:20.1]} 34. Ba5 {[%clk 0:01:11]} 34... Rf8
{[%clk 0:00:18.4]} 35. Rc7 {[%clk 0:01:10.5]} 35... Qb8 {[%clk 0:00:17.8]} 36.
Rxd7 {[%clk 0:01:09.2]} 36... Bxd7 {[%clk 0:00:18.7]} 37. Qxd4 {[%clk
0:01:08.6]} 37... Bg4 {[%clk 0:00:18.7]} 38. Qd6 {[%clk 0:01:03.8]} 38... Qa8
{[%clk 0:00:18.5]} 39. Qc6 {[%clk 0:00:44.6]} 39... Qa7 {[%clk 0:00:18]} 40. Qc5
{[%clk 0:00:40.9]} 40... Qa8 {[%clk 0:00:16.5]} 41. Qe7 {[%clk 0:00:39.1]} 41...
Ne6 {[%clk 0:00:16.4]} 42. f5 {[%clk 0:00:35.3]} 42... Nd4 {[%clk 0:00:09.7]}
43. fxg6+ {[%clk 0:00:23.3]} 43... Kxg6 {[%clk 0:00:10.6]} 44. Qf6+ {[%clk
0:00:22.9]} 44... Kh7 {[%clk 0:00:10.5]} 45. Bd2 {[%clk 0:00:18.8]} 45... Ne6
{[%clk 0:00:07.1]} 46. Bb4 {[%clk 0:00:13.1]} 46... Rg8 {[%clk 0:00:06.4]} 47.
Qxf7+ {[%clk 0:00:11.3]} 47... Rg7 {[%clk 0:00:06.3]} 48. Qf6 {[%clk 0:00:11.5]}
48... Qe8 {[%clk 0:00:05.1]} 49. Rf1 {[%clk 0:00:08.3]} 1-0

[Event "Early-Titled-Tuesday-Blitz-November-28-2023"]
[Site "Chess.com"]
[Date "2023.11.28"]
[Round "3"]
[White "Kildepiotr"]
[Black "Nf3c5"]
[Result "1-0"]
[WhiteElo "2713"]
[BlackElo "2507"]
[TimeControl "180+1"]
[EndTime "8:29:42 PST"]
[Termination "Kildepiotr won on time"]

1. Nf3 {[%clk 0:03:00.9]} 1... d5 {[%clk 0:02:59.2]} 2. g3 {[%clk 0:03:01.1]}
2... Nf6 {[%clk 0:02:53.1]} 3. Bg2 {[%clk 0:03:01.1]} 3... c6 {[%clk 0:02:51.7]}
4. O-O {[%clk 0:03:00.8]} 4... Bf5 {[%clk 0:02:52.3]} 5. c4 {[%clk 0:03:00.1]}
5... e6 {[%clk 0:02:49.9]} 6. cxd5 {[%clk 0:02:59.9]} 6... cxd5 {[%clk
0:02:46.8]} 7. d3 {[%clk 0:03:00.1]} 7... Nc6 {[%clk 0:02:46.7]} 8. Nc3 {[%clk
0:03:00]} 8... Be7 {[%clk 0:02:41.4]} 9. Qb3 {[%clk 0:02:57]} 9... Qb6 {[%clk
0:02:38.8]} 10. Qc2 {[%clk 0:02:56.7]} 10... h6 {[%clk 0:02:28.6]} 11. e4 {[%clk
0:02:56.1]} 11... dxe4 {[%clk 0:02:27.4]} 12. dxe4 {[%clk 0:02:57]} 12... Bh7
{[%clk 0:02:27.8]} 13. Be3 {[%clk 0:02:49.4]} 13... Qa6 {[%clk 0:02:09]} 14.
Rfe1 {[%clk 0:02:25.5]} 14... Rc8 {[%clk 0:01:52]} 15. Bf1 {[%clk 0:02:16.4]}
15... Qa5 {[%clk 0:01:51.3]} 16. Qb3 {[%clk 0:02:16.2]} 16... Qb4 {[%clk
0:01:38]} 17. Nd2 {[%clk 0:01:40.6]} 17... O-O {[%clk 0:01:30.3]} 18. f3 {[%clk
0:01:37.4]} 18... Rfd8 {[%clk 0:01:29.2]} 19. Rad1 {[%clk 0:01:25]} 19... Bc5
{[%clk 0:01:23.5]} 20. Qxb4 {[%clk 0:01:17]} 20... Bxe3+ {[%clk 0:01:19.1]} 21.
Rxe3 {[%clk 0:01:17.9]} 21... Nxb4 {[%clk 0:01:19.6]} 22. Nc4 {[%clk 0:01:04.3]}
22... Rxd1 {[%clk 0:00:52.6]} 23. Nxd1 {[%clk 0:01:05.2]} 23... Nc6 {[%clk
0:00:23.2]} 24. Nc3 {[%clk 0:00:48.7]} 24... Rd8 {[%clk 0:00:23.3]} 25. Kf2
{[%clk 0:00:40.6]} 25... Kf8 {[%clk 0:00:22.8]} 26. Rd3 {[%clk 0:00:32.1]} 26...
Rxd3 {[%clk 0:00:21.3]} 27. Bxd3 {[%clk 0:00:33]} 27... Ke7 {[%clk 0:00:22.1]}
28. Ke3 {[%clk 0:00:31.6]} 28... Nd7 {[%clk 0:00:20.8]} 29. f4 {[%clk
0:00:27.7]} 29... f6 {[%clk 0:00:20.7]} 30. a3 {[%clk 0:00:23.8]} 30... Bg8
{[%clk 0:00:21]} 31. b4 {[%clk 0:00:22.3]} 31... a6 {[%clk 0:00:18.9]} 32. Ne2
{[%clk 0:00:14.3]} 32... e5 {[%clk 0:00:19.1]} 33. f5 {[%clk 0:00:12.8]} 33...
b5 {[%clk 0:00:17.7]} 34. Nd2 {[%clk 0:00:11.6]} 34... Nb6 {[%clk 0:00:18.1]}
35. Nf3 {[%clk 0:00:08.5]} 35... Na4 {[%clk 0:00:17.8]} 36. h4 {[%clk
0:00:07.8]} 36... Bf7 {[%clk 0:00:16.3]} 37. g4 {[%clk 0:00:07.8]} 37... Kd6
{[%clk 0:00:16.6]} 38. g5 {[%clk 0:00:07.8]} 38... hxg5 {[%clk 0:00:15.4]} 39.
hxg5 {[%clk 0:00:08.7]} 39... Kc7 {[%clk 0:00:14.7]} 40. g6 {[%clk 0:00:08.9]}
40... Bg8 {[%clk 0:00:14.8]} 41. Ng3 {[%clk 0:00:09.2]} 41... Kd6 {[%clk
0:00:02.6]} 42. Nh5 {[%clk 0:00:09.4]} 42... Ke7 {[%clk 0:00:03.5]} 43. Nxg7
{[%clk 0:00:09.8]} 43... Nd8 {[%clk 0:00:02.7]} 44. Nh5 {[%clk 0:00:09.7]} 44...
Nc6 {[%clk 0:00:03.4]} 45. Nh2 {[%clk 0:00:08.6]} 45... Nb2 {[%clk 0:00:01.8]}
46. Ng4 {[%clk 0:00:08.6]} 46... Bc4 {[%clk 0:00:02.5]} 47. Bc2 {[%clk
0:00:08.4]} 47... a5 {[%clk 0:00:01.8]} 48. bxa5 {[%clk 0:00:08.4]} 48... Nxa5
{[%clk 0:00:02.3]} 49. Ngxf6 {[%clk 0:00:07.9]} 49... Bb3 {[%clk 0:00:02.1]} 50.
Bxb3 {[%clk 0:00:07.7]} 50... Nxb3 {[%clk 0:00:03]} 51. g7 {[%clk 0:00:08.3]}
1-0

[Event "Early-Titled-Tuesday-Blitz-November-28-2023"]
[Site "Chess.com"]
[Date "2023.11.28"]
[Round "3"]
[White "Vesper2018"]
[Black "vladoboch"]
[Result "1-0"]
[WhiteElo "2603"]
[BlackElo "2429"]
[TimeControl "180+1"]
[EndTime "8:29:45 PST"]
[Termination "Vesper2018 won on time"]

1. e4 {[%clk 0:03:00.9]} 1... e5 {[%clk 0:02:58.4]} 2. Nf3 {[%clk 0:03:00.7]}
2... Nc6 {[%clk 0:02:58.4]} 3. Bb5 {[%clk 0:03:00.8]} 3... a6 {[%clk 0:02:57.9]}
4. Ba4 {[%clk 0:03:00.9]} 4... Nf6 {[%clk 0:02:58.5]} 5. O-O {[%clk 0:03:00.7]}
5... b5 {[%clk 0:02:58.5]} 6. Bb3 {[%clk 0:03:00.5]} 6... Bc5 {[%clk 0:02:59.2]}
7. c3 {[%clk 0:02:58.5]} 7... d6 {[%clk 0:02:59]} 8. a4 {[%clk 0:02:52.6]} 8...
Rb8 {[%clk 0:02:58.3]} 9. d4 {[%clk 0:02:52.4]} 9... Bb6 {[%clk 0:02:57.1]} 10.
a5 {[%clk 0:02:51]} 10... Ba7 {[%clk 0:02:56.3]} 11. h3 {[%clk 0:02:47.6]} 11...
O-O {[%clk 0:02:54]} 12. Re1 {[%clk 0:02:47.5]} 12... h6 {[%clk 0:02:52.7]} 13.
Be3 {[%clk 0:02:45.5]} 13... Re8 {[%clk 0:02:38.4]} 14. dxe5 {[%clk 0:02:41.7]}
14... dxe5 {[%clk 0:02:13.4]} 15. Qxd8 {[%clk 0:02:39.3]} 15... Rxd8 {[%clk
0:02:14.3]} 16. Bxa7 {[%clk 0:02:39]} 16... Nxa7 {[%clk 0:02:14.3]} 17. Nxe5
{[%clk 0:02:39.4]} 17... Be6 {[%clk 0:02:13.5]} 18. Bxe6 {[%clk 0:02:38.3]}
18... fxe6 {[%clk 0:02:14.4]} 19. Na3 {[%clk 0:02:35.1]} 19... Rd2 {[%clk
0:02:09.4]} 20. b4 {[%clk 0:02:24.7]} 20... Rbd8 {[%clk 0:02:07.7]} 21. c4
{[%clk 0:02:07.5]} 21... c6 {[%clk 0:01:44.8]} 22. Nf3 {[%clk 0:01:48.8]} 22...
Rb2 {[%clk 0:01:41.3]} 23. e5 {[%clk 0:01:47.7]} 23... Nh5 {[%clk 0:01:26.2]}
24. Rad1 {[%clk 0:01:26.8]} 24... Rf8 {[%clk 0:01:23.4]} 25. Rb1 {[%clk
0:01:15.9]} 25... Ra2 {[%clk 0:01:19.9]} 26. Rb3 {[%clk 0:01:15.8]} 26... Rd8
{[%clk 0:01:01.7]} 27. cxb5 {[%clk 0:01:07.3]} 27... Nxb5 {[%clk 0:00:53.2]} 28.
Nxb5 {[%clk 0:01:07]} 28... cxb5 {[%clk 0:00:54.1]} 29. Rc3 {[%clk 0:01:01.8]}
29... Rb2 {[%clk 0:00:33.1]} 30. Rc6 {[%clk 0:01:01.3]} 30... Nf4 {[%clk
0:00:28]} 31. Rxa6 {[%clk 0:00:57.7]} 31... Rxb4 {[%clk 0:00:28.1]} 32. Rb6
{[%clk 0:00:56.7]} 32... Rd5 {[%clk 0:00:24.5]} 33. a6 {[%clk 0:00:54.6]} 33...
Ra4 {[%clk 0:00:24.3]} 34. Rb1 {[%clk 0:00:44.3]} 34... Ne2+ {[%clk 0:00:17.2]}
35. Kh2 {[%clk 0:00:43.1]} 35... Nc3 {[%clk 0:00:18.1]} 36. Rb3 {[%clk
0:00:43.2]} 36... Ne4 {[%clk 0:00:12.4]} 37. Rb2 {[%clk 0:00:26.5]} 37... Kf7
{[%clk 0:00:09.4]} 38. Rb7+ {[%clk 0:00:23.7]} 38... Kg6 {[%clk 0:00:07.5]} 39.
a7 {[%clk 0:00:23.2]} 39... Nc5 {[%clk 0:00:05.5]} 40. Rc7 {[%clk 0:00:22.8]}
40... Nd3 {[%clk 0:00:03.5]} 41. Rb3 {[%clk 0:00:13.6]} 41... b4 {[%clk
0:00:02.6]} 42. Nh4+ {[%clk 0:00:09.6]} 42... Kh7 {[%clk 0:00:01.9]} 43. Re7
{[%clk 0:00:09.7]} 43... Rda5 {[%clk 0:00:01.3]} 44. Rxe6 {[%clk 0:00:09.6]}
44... Rxa7 {[%clk 0:00:01.7]} 45. Rxd3 {[%clk 0:00:09.6]} 45... Ra3 {[%clk
0:00:01.5]} 46. Rd8 {[%clk 0:00:08.9]} 46... b3 {[%clk 0:00:01.8]} 47. Ree8
{[%clk 0:00:09.3]} 47... g5 {[%clk 0:00:01.5]} 48. Rh8+ {[%clk 0:00:09.4]} 48...
Kg7 {[%clk 0:00:02.2]} 49. Nf5+ {[%clk 0:00:08.5]} 49... Kg6 {[%clk 0:00:02.1]}
50. g4 {[%clk 0:00:06.3]} 1-0